bitfinex-derivatives/quotes_BTCF0:USTF0_20250913
["timestamp","ask_amount","ask_price","bid_price","bid_amount"]
[1757740121552,0.04390623,115790.0,115780.0,2.24151123]
[1757740128453,0.12144964,115790.0,115780.0,2.29318156]
[1757740130662,0.04390623,115790.0,115780.0,2.29318156]
[1757740131055,0.12144964,115790.0,115780.0,2.13809474]
[1757740131255,0.12144964,115790.0,115780.0,2.29318156]
[1757740131558,0.12144964,115790.0,115780.0,2.37072497]
[1757740132057,0.04390623,115790.0,115780.0,2.37072497]
[1757740132256,0.12144964,115790.0,115780.0,2.37072497]
[1757740135358,0.12144964,115790.0,115780.0,2.29318156]
[1757740138667,0.12144964,115790.0,115780.0,2.13809474]
[1757740138865,0.12144964,115790.0,115780.0,2.29318156]
[1757740139565,0.04390623,115790.0,115780.0,2.29318156]
[1757740139768,0.12144964,115790.0,115780.0,3.95156489]
[1757740144368,0.04390623,115790.0,115780.0,3.95156489]
[1757740144671,0.12144964,115790.0,115780.0,3.95156489]
[1757740145573,0.12144964,115790.0,115780.0,4.0291083]
[1757740146574,0.04390623,115790.0,115780.0,4.0291083]
[1757740161085,0.04390623,115790.0,115780.0,3.79647807]
[1757740161287,0.04390623,115790.0,115780.0,4.0291083]
[1757740163291,0.04390623,115790.0,115780.0,3.79647807]
[1757740163490,0.12144964,115790.0,115780.0,3.95156489]
[1757740164792,0.04390623,115790.0,115780.0,3.95156489]
[1757740165090,0.12144964,115790.0,115780.0,3.95156489]
[1757740165594,0.12144964,115790.0,115780.0,4.0291083]
[1757740167385,0.04390623,115790.0,115780.0,4.0291083]
[1757740180894,0.04390623,115790.0,115780.0,3.95156489]
[1757740181597,0.04390623,115790.0,115780.0,4.0291083]
[1757740181903,0.04390623,115790.0,115780.0,3.79647807]
[1757740182104,0.04390623,115790.0,115780.0,4.0291083]
[1757740190504,0.04390623,115790.0,115780.0,4.00325713]
[1757740199314,0.04390623,115790.0,115780.0,3.28165713]
[1757740199503,0.04390623,115790.0,115780.0,4.00325713]
[1757740210117,0.04390623,115790.0,115780.0,3.79647807]
[1757740210317,0.04390623,115790.0,115780.0,4.00325713]
[1757740219933,0.04390623,115790.0,115780.0,3.79647807]
[1757740220233,0.04390623,115790.0,115780.0,4.00325713]
[1757740226836,0.04390623,115790.0,115780.0,3.79647807]
[1757740227035,0.04390623,115790.0,115780.0,4.00325713]
[1757740235239,0.04243914,115790.0,115780.0,4.00325713]
[1757740237940,0.04243914,115790.0,115780.0,3.20689713]
[1757740238137,0.04243914,115790.0,115780.0,4.00009713]
[1757740240344,0.04243914,115790.0,115780.0,3.79331807]
[1757740240544,0.04243914,115790.0,115780.0,3.8967076]
[1757740241842,0.04243914,115790.0,115780.0,4.00009713]
[1757740249446,0.04243914,115790.0,115780.0,2.34145713]
[1757740250351,0.04243914,115790.0,115780.0,2.3673062]
[1757740252750,0.04243914,115790.0,115780.0,2.13467807]
[1757740252954,0.04243914,115790.0,115780.0,2.3673062]
[1757740255153,0.04243914,115790.0,115780.0,2.13467807]
[1757740255352,0.04243914,115790.0,115780.0,2.3673062]
[1757740259658,0.04243914,115790.0,115780.0,2.36699749]
[1757740270161,0.04243914,115790.0,115780.0,2.13436936]
[1757740270659,0.04243914,115790.0,115780.0,2.36699749]
[1757740273566,0.11998185,115790.0,115780.0,2.36699749]
[1757740274869,0.11998185,115790.0,115780.0,2.13436936]
[1757740275168,0.11998185,115790.0,115780.0,2.36699749]
[1757740277165,0.11998185,115790.0,115780.0,2.21191207]
[1757740277373,0.11998185,115790.0,115780.0,2.36699749]
[1757740277568,0.04243914,115790.0,115780.0,2.36699749]
[1757740278774,0.04240834,115790.0,115780.0,2.36699749]
[1757740295893,0.04240834,115790.0,115780.0,2.13436936]
[1757740296095,0.04240834,115790.0,115780.0,2.36699749]
[1757740296297,0.04240834,115790.0,115780.0,2.13436936]
[1757740296497,0.04240834,115790.0,115780.0,2.36699749]
[1757740301997,0.04240834,115790.0,115780.0,2.13436936]
[1757740302193,0.04240834,115790.0,115780.0,2.36699749]
[1757740309200,0.04240834,115790.0,115780.0,2.13436936]
[1757740309401,0.11995105,115790.0,115780.0,2.28945478]
[1757740309703,0.11995105,115790.0,115780.0,2.36699749]
[1757740310804,0.04240834,115790.0,115780.0,2.36699749]
[1757740311098,0.11995105,115790.0,115780.0,2.36699749]
[1757740311703,0.11995105,115790.0,115780.0,2.36523749]
[1757740312307,0.04240834,115790.0,115780.0,2.36523749]
[1757740312508,0.04240834,115790.0,115780.0,2.339394]
[1757740314219,0.04240834,115790.0,115780.0,1.34116936]
[1757740314509,0.04240834,115790.0,115780.0,2.23600168]
[1757740314806,0.04240834,115790.0,115780.0,2.339394]
[1757740315703,0.04240834,115790.0,115780.0,2.13260936]
[1757740315903,0.04240834,115790.0,115780.0,2.23600168]
[1757740318815,0.04240834,115790.0,115780.0,2.13260936]
[1757740319012,0.04240834,115790.0,115780.0,2.23600168]
[1757740319608,0.04240834,115790.0,115780.0,2.13260936]
[1757740319815,0.04240834,115790.0,115780.0,2.23600168]
[1757740324608,0.04240834,115790.0,115780.0,2.339394]
[1757740347130,0.04240834,115790.0,115780.0,2.13260936]
[1757740347331,0.04240834,115790.0,115780.0,2.339394]
[1757740349534,0.04240834,115790.0,115780.0,2.13260936]
[1757740349728,0.04240834,115790.0,115780.0,2.339394]
[1757740355832,0.04240834,115790.0,115780.0,2.13260936]
[1757740356034,0.04240834,115790.0,115780.0,2.339394]
[1757740358136,0.04240834,115790.0,115780.0,2.13260936]
[1757740358338,0.04240834,115790.0,115780.0,2.339394]
[1757740370450,0.04240834,115790.0,115780.0,1.34116936]
[1757740370651,0.04240834,115790.0,115780.0,2.338874]
[1757740374353,0.04240834,115790.0,115780.0,2.3647156]
[1757740376156,0.04200261,115790.0,115780.0,2.3647156]
[1757740379660,0.04200261,115790.0,115780.0,2.36473366]
[1757740379859,0.04200261,115790.0,115780.0,2.13210742]
[1757740380059,0.04200261,115790.0,115780.0,2.36473366]
[1757740381059,0.04200261,115790.0,115780.0,2.13210742]
[1757740381259,0.04200261,115790.0,115780.0,2.36473366]
[1757740385655,0.04200261,115790.0,115780.0,2.13210742]
[1757740385857,0.04200261,115790.0,115780.0,2.36473366]
[1757740392065,0.04200261,115790.0,115780.0,2.13210742]
[1757740392267,0.04200261,115790.0,115780.0,2.36473366]
[1757740394666,0.04200261,115790.0,115780.0,2.13210742]
[1757740394870,0.04200261,115790.0,115780.0,2.36473366]
[1757740396269,0.04200261,115790.0,115780.0,2.13210742]
[1757740396470,0.04200261,115790.0,115780.0,2.36473366]
[1757740400574,0.04200261,115790.0,115780.0,1.64313366]
[1757740400774,0.04200261,115790.0,115780.0,2.36473366]
[1757740401172,0.04200261,115790.0,115780.0,2.28719158]
[1757740403874,0.04200261,115790.0,115780.0,2.36473366]
[1757740411672,0.04200261,115790.0,115780.0,1.64313366]
[1757740411880,0.04200261,115790.0,115780.0,2.36473366]
[1757740418785,0.04200261,115790.0,115780.0,2.13210742]
[1757740418986,0.04200261,115790.0,115780.0,2.36473366]
[1757740419887,0.04200261,115790.0,115780.0,2.13210742]
[1757740420088,0.04200261,115790.0,115780.0,2.36473366]
[1757740424285,0.01276,115800.0,115780.0,2.80105526]
[1757740424591,0.01276,115800.0,115790.0,0.59342624]
[1757740424893,0.01276,115800.0,115790.0,1.15342624]
[1757740425391,0.01276,115800.0,115790.0,1.50342624]
[1757740426295,0.01276,115800.0,115790.0,1.58974044]
[1757740427094,0.01276,115800.0,115790.0,1.59074044]
[1757740430492,0.01276,115800.0,115790.0,1.85684044]
[1757740431596,0.01276,115800.0,115790.0,1.60684044]
[1757740433293,0.01276,115800.0,115790.0,1.85684044]
[1757740434400,0.01276,115800.0,115790.0,1.96016083]
[1757740437910,0.01276,115800.0,115790.0,2.75012083]
[1757740440712,0.01276,115800.0,115790.0,2.75008083]
[1757740443212,0.01276,115800.0,115790.0,2.72409537]
[1757740449219,0.01276,115800.0,115790.0,2.62077498]
[1757740449923,0.01276,115800.0,115790.0,1.83085498]
[1757740450122,0.01276,115800.0,115790.0,2.62057498]
[1757740451724,0.01276,115800.0,115790.0,2.72389537]
[1757740456626,0.01276,115800.0,115790.0,2.47389537]
[1757740456830,0.01356,115820.0,115810.0,0.3608]
[1757740457028,0.01356,115820.0,115810.0,2.00809981]
[1757740457329,0.01356,115820.0,115810.0,1.90477942]
[1757740457531,0.04190626,115820.0,115810.0,1.90477942]
[1757740457731,0.04190626,115820.0,115810.0,1.11517942]
[1757740457935,0.04190626,115820.0,115810.0,1.90477942]
[1757740458533,0.04290626,115820.0,115810.0,1.90477942]
[1757740459136,0.04290626,115820.0,115810.0,2.77333942]
[1757740459434,0.29290626,115820.0,115810.0,2.67001903]
[1757740459630,0.29290626,115820.0,115810.0,3.45953903]
[1757740459830,0.39622665,115820.0,115810.0,2.17001903]
[1757740460031,0.39622665,115820.0,115810.0,2.95953903]
[1757740460327,0.29290626,115820.0,115810.0,2.95953903]
[1757740460631,0.39622665,115820.0,115810.0,2.95953903]
[1757740461235,0.29290626,115820.0,115810.0,2.95953903]
[1757740461534,0.39622665,115820.0,115810.0,2.95953903]
[1757740461939,0.29290626,115820.0,115810.0,2.95953903]
[1757740463935,0.29290626,115820.0,115810.0,1.30137903]
[1757740466232,0.29290626,115820.0,115810.0,0.37853864]
[1757740466233,0.52160704,115820.0,115810.0,0.37853864]
[1757740466430,0.52160704,115820.0,115810.0,1.16793864]
[1757740466731,0.55266104,115820.0,115810.0,1.1502]
[1757740466926,0.59922743,115820.0,115810.0,1.1502]
[1757740467325,0.55266104,115820.0,115810.0,1.1502]
[1757740467732,0.34602026,115820.0,115810.0,1.1502]
[1757740468039,0.55266104,115820.0,115810.0,1.1502]
[1757740471537,0.34602026,115820.0,115810.0,1.1502]
[1757740471738,0.55266104,115820.0,115810.0,1.1502]
[1757740472544,0.52160704,115820.0,115810.0,1.1502]
[1757740473139,0.31496626,115820.0,115810.0,1.1502]
[1757740473338,0.52160704,115820.0,115810.0,1.1502]
[1757740475245,0.41828665,115820.0,115810.0,1.1502]
[1757740475745,0.31496626,115820.0,115810.0,1.1502]
[1757740475946,0.52160704,115820.0,115810.0,1.1502]
[1757740479249,0.27160704,115820.0,115810.0,1.1502]
[1757740480047,0.06496626,115820.0,115810.0,1.1502]
[1757740480252,0.27160704,115820.0,115810.0,1.1502]
[1757740481546,0.16828665,115820.0,115810.0,1.1502]
[1757740481752,0.16828665,115820.0,115810.0,1.15004]
[1757740482048,0.27160704,115820.0,115810.0,1.15004]
[1757740482242,0.27160704,115820.0,115810.0,0.3608]
[1757740482441,0.03514,115810.0,115800.0,0.3608]
[1757740482642,0.16680665,115810.0,115800.0,1.15]
[1757740492955,0.06348626,115810.0,115800.0,1.15]
[1757740493156,0.16680665,115810.0,115800.0,1.15]
[1757740493556,0.19786065,115810.0,115800.0,1.15]
[1757740494360,0.26766417,115810.0,115800.0,1.15]
[1757740496371,0.39698532,115810.0,115800.0,1.15]
[1757740497763,0.36863906,115810.0,115800.0,1.15]
[1757740497964,0.39728118,115810.0,115800.0,1.15]
[1757740498773,0.39728118,115810.0,115800.0,1.14984]
[1757740502376,0.41279357,115810.0,115800.0,1.14984]
[1757740507180,0.41278896,115810.0,115800.0,1.14984]
[1757740510682,0.66278896,115810.0,115800.0,1.14984]
[1757740518790,0.61622257,115810.0,115800.0,1.14984]
[1757740520590,0.6627882,115810.0,115800.0,1.14984]
[1757740522191,0.61622257,115810.0,115800.0,1.14984]
[1757740522392,0.66278429,115810.0,115800.0,1.14984]
[1757740523192,0.61622257,115810.0,115800.0,1.14984]
[1757740523392,0.38358103,115810.0,115800.0,1.14984]
[1757740523594,0.61622257,115810.0,115800.0,0.78904]
[1757740528194,0.678308,115810.0,115800.0,0.78904]
[1757740530094,0.428308,115810.0,115800.0,0.78904]
[1757740532292,0.03417,115800.0,115790.0,0.3608]
[1757740532599,0.33322698,115800.0,115790.0,0.78864]
[1757740532896,0.36186449,115800.0,115790.0,0.78864]
[1757740533099,0.36186449,115800.0,115790.0,1.14944]
[1757740533586,0.36186449,115800.0,115790.0,1.15044]
[1757740550296,0.12922295,115800.0,115790.0,1.15044]
[1757740550605,0.36186449,115800.0,115790.0,1.15044]
[1757740550806,0.31528941,115800.0,115790.0,1.15044]
[1757740554797,0.37737484,115800.0,115790.0,1.15044]
[1757740556811,0.37737484,115800.0,115790.0,0.3618]
[1757740557007,0.37737484,115800.0,115790.0,1.15012]
[1757740558518,0.3515808,115800.0,115790.0,1.15012]
[1757740560719,0.33607375,115800.0,115790.0,1.15012]
[1757740561318,0.12922625,115800.0,115790.0,1.15012]
[1757740561519,0.33607375,115800.0,115790.0,1.15012]
[1757740562216,0.28949537,115800.0,115790.0,1.15012]
[1757740569829,0.08264787,115800.0,115790.0,1.15012]
[1757740570129,0.28949537,115800.0,115790.0,1.15012]
[1757740570526,0.08264787,115800.0,115790.0,1.15012]
[1757740570728,0.28949537,115800.0,115790.0,1.15012]
[1757740571225,0.3515808,115800.0,115790.0,1.15012]
[1757740571720,0.1447333,115800.0,115790.0,1.15012]
[1757740571925,0.3515808,115800.0,115790.0,1.15012]
[1757740573326,0.32294329,115800.0,115790.0,1.15012]
[1757740573525,0.35163645,115800.0,115790.0,1.15012]
[1757740580522,0.28955102,115800.0,115790.0,1.15012]
[1757740580827,0.32060459,115800.0,115790.0,1.15012]
[1757740584125,0.28955102,115800.0,115790.0,1.15012]
[1757740590632,0.35163645,115800.0,115790.0,1.15012]
[1757740600839,0.28955102,115800.0,115790.0,1.15012]
[1757740602144,0.33613441,115800.0,115790.0,1.15012]
[1757740607339,0.28955102,115800.0,115790.0,1.15012]
[1757740610646,0.35163645,115800.0,115790.0,1.15012]
[1757740611143,0.28955102,115800.0,115790.0,1.15012]
[1757740612643,0.35163645,115800.0,115790.0,1.15012]
[1757740613150,0.28955102,115800.0,115790.0,1.15012]
[1757740614849,0.28955102,115800.0,115790.0,0.78932]
[1757740615250,0.35163645,115800.0,115790.0,0.78932]
[1757740616347,0.39297477,115800.0,115790.0,0.001]
[1757740616750,0.03509,115790.0,115780.0,0.79688]
[1757740616951,0.51905234,115790.0,115780.0,1.15768]
[1757740617250,0.5477455,115790.0,115780.0,1.15768]
[1757740618153,0.44432175,115790.0,115780.0,1.15768]
[1757740618357,0.67707939,115790.0,115780.0,0.79688]
[1757740618549,0.63052492,115790.0,115780.0,0.79688]
[1757740618941,0.55293904,115790.0,115780.0,0.79688]
[1757740619147,0.63052492,115790.0,115780.0,0.79688]
[1757740619347,0.67704284,115790.0,115780.0,0.79688]
[1757740620258,0.63052492,115790.0,115780.0,0.79688]
[1757740620657,0.67704221,115790.0,115780.0,0.79688]
[1757740621059,0.63052492,115790.0,115780.0,0.79688]
[1757740621246,0.67703576,115790.0,115780.0,0.79688]
[1757740621649,0.68553542,115790.0,115780.0,0.79688]
[1757740626563,0.45277778,115790.0,115780.0,0.79688]
[1757740626857,0.68553542,115790.0,115770.0,0.3608]
[1757740627061,0.0660845,115780.0,115770.0,0.3608]
[1757740627260,0.3275353,115780.0,115770.0,1.15696]
[1757740628564,0.34745474,115780.0,115770.0,1.15796]
[1757740629165,0.1146971,115780.0,115770.0,1.15796]
[1757740629468,0.34745474,115780.0,115770.0,1.15796]
[1757740629962,0.1146971,115780.0,115770.0,1.15796]
[1757740630163,0.34745474,115780.0,115770.0,1.15796]
[1757740630866,0.34745474,115780.0,115770.0,1.15896]
[1757740633771,0.1146971,115780.0,115770.0,1.15896]
[1757740633978,0.39396558,115780.0,115770.0,1.1678]
[1757740634668,0.16120794,115780.0,115770.0,1.1678]
[1757740634968,0.39396558,115780.0,115770.0,1.1678]
[1757740635372,0.16120794,115780.0,115770.0,1.1678]
[1757740635671,0.39396558,115780.0,115770.0,1.1678]
[1757740636770,0.34745474,115780.0,115770.0,1.1678]
[1757740637073,0.34745474,115780.0,115770.0,1.1658]
[1757740637269,0.1146971,115780.0,115770.0,1.1658]
[1757740637776,0.34745474,115780.0,115770.0,1.1658]
[1757740638074,0.39396558,115780.0,115770.0,1.1658]
[1757740639178,0.34745474,115780.0,115770.0,1.1658]
[1757740640775,0.39396558,115780.0,115770.0,1.1658]
[1757740642670,0.16120794,115780.0,115770.0,1.1658]
[1757740643072,0.26986886,115780.0,115770.0,1.24338588]
[1757740643276,0.39396558,115780.0,115770.0,1.1658]
[1757740646177,0.36297108,115780.0,115770.0,1.1658]
[1757740647074,0.13021344,115780.0,115770.0,1.1658]
[1757740647279,0.34305164,115780.0,115770.0,1.1658]
[1757740647672,0.110294,115780.0,115770.0,1.1658]
[1757740647868,0.34305164,115780.0,115770.0,1.1658]
[1757740652484,0.110294,115780.0,115770.0,1.1658]
[1757740652684,0.34305164,115780.0,115770.0,1.1658]
[1757740656884,0.110294,115780.0,115770.0,1.1658]
[1757740657085,0.34305164,115780.0,115770.0,1.1658]
[1757740657888,0.34359582,115780.0,115770.0,1.1658]
[1757740658188,0.11083818,115780.0,115770.0,1.1658]
[1757740658387,0.34359582,115780.0,115770.0,1.1658]
[1757740661500,0.11083818,115780.0,115770.0,1.1658]
[1757740661701,0.34359582,115780.0,115770.0,1.1658]
[1757740663102,0.11083818,115780.0,115770.0,1.1658]
[1757740663302,0.34359582,115780.0,115770.0,1.1658]
[1757740664396,0.34359582,115780.0,115770.0,1.16232]
[1757740666305,0.37463566,115780.0,115770.0,1.16232]
[1757740668105,0.14187802,115780.0,115770.0,1.16232]
[1757740668304,0.37463566,115780.0,115770.0,1.16232]
[1757740668704,0.14187802,115780.0,115770.0,1.16232]
[1757740668904,0.37463566,115780.0,115770.0,1.16232]
[1757740669411,0.14187802,115780.0,115770.0,1.16232]
[1757740669906,0.37463566,115780.0,115770.0,1.16232]
[1757740670309,0.11083818,115780.0,115770.0,1.16232]
[1757740670711,0.34359582,115780.0,115770.0,1.16232]
[1757740672003,0.11083818,115780.0,115770.0,1.16232]
[1757740672309,0.34359582,115780.0,115770.0,1.16232]
[1757740674114,0.11083818,115780.0,115770.0,1.16232]
[1757740674313,0.34359582,115780.0,115770.0,1.16232]
[1757740676218,0.11083818,115780.0,115770.0,1.16232]
[1757740676412,0.34359582,115780.0,115770.0,1.16232]
[1757740678615,0.11083818,115780.0,115770.0,1.16232]
[1757740678815,0.34359582,115780.0,115770.0,1.16232]
[1757740680421,0.31771198,115780.0,115770.0,1.16232]
[1757740680813,0.11083818,115780.0,115770.0,1.16232]
[1757740681109,0.31771198,115780.0,115770.0,1.16232]
[1757740681819,0.11083818,115780.0,115770.0,1.16232]
[1757740682119,0.31771198,115780.0,115770.0,1.16232]
[1757740683815,0.11083818,115780.0,115770.0,1.16232]
[1757740684126,0.31771198,115780.0,115770.0,1.16232]
[1757740684919,0.11083818,115780.0,115770.0,1.16232]
[1757740685120,0.21427508,115780.0,115770.0,1.2657569]
[1757740685421,0.21427508,115780.0,115770.0,1.16232]
[1757740686416,0.11083818,115780.0,115770.0,1.16232]
[1757740686618,0.21427508,115780.0,115770.0,1.16232]
[1757740688719,0.31771198,115780.0,115770.0,1.16232]
[1757740689824,0.11083818,115780.0,115770.0,1.16232]
[1757740690017,0.31771198,115780.0,115770.0,1.16232]
[1757740690426,0.11083818,115780.0,115770.0,1.16232]
[1757740690623,0.31771198,115780.0,115770.0,1.16232]
[1757740690820,0.34874491,115780.0,115770.0,1.16232]
[1757740692021,0.31771198,115780.0,115770.0,1.16232]
[1757740692218,0.34874423,115780.0,115770.0,1.16232]
[1757740698125,0.14187043,115780.0,115770.0,1.16232]
[1757740698318,0.34874423,115780.0,115770.0,1.16232]
[1757740706532,0.14187043,115780.0,115770.0,1.16232]
[1757740706733,0.34874423,115780.0,115770.0,1.16232]
[1757740714535,0.31771198,115780.0,115770.0,1.16232]
[1757740716442,0.11083818,115780.0,115770.0,1.16232]
[1757740716641,0.31771198,115780.0,115770.0,1.16232]
[1757740717139,0.21427508,115780.0,115770.0,1.16232]
[1757740717445,0.31771198,115780.0,115770.0,1.16232]
[1757740718045,0.11083818,115780.0,115770.0,1.16232]
[1757740718233,0.31771198,115780.0,115770.0,1.16232]
[1757740720651,0.34874342,115780.0,115770.0,1.16232]
[1757740723452,0.14186962,115780.0,115770.0,1.16232]
[1757740723643,0.34874342,115780.0,115770.0,1.16232]
[1757740724348,0.14186962,115780.0,115770.0,1.16232]
[1757740724544,0.34874342,115780.0,115770.0,1.16232]
[1757740726553,0.14186962,115780.0,115770.0,1.16232]
[1757740726748,0.34874342,115780.0,115770.0,1.16232]
[1757740726943,0.08843818,115780.0,115770.0,1.2657569]
[1757740727148,0.04192734,115780.0,115770.0,1.6357569]
[1757740727349,0.04192734,115780.0,115770.0,1.5157569]
[1757740729651,0.04192734,115780.0,115770.0,1.52423539]
[1757740730752,0.04192734,115780.0,115770.0,1.27423539]
[1757740733860,0.14536424,115780.0,115770.0,1.27423539]
[1757740734657,0.04192734,115780.0,115770.0,1.27423539]
[1757740735357,0.04192734,115780.0,115770.0,1.82423539]
[1757740735564,0.04192734,115780.0,115770.0,2.07423539]
[1757740739663,0.04192734,115780.0,115770.0,2.07523539]
[1757740740566,0.11948074,115780.0,115770.0,2.12690529]
[1757740741063,0.04192734,115780.0,115770.0,2.12790529]
[1757740741669,0.11948074,115780.0,115770.0,2.12790529]
[1757740742071,0.04192734,115780.0,115770.0,2.12790529]
[1757740742370,0.11948074,115780.0,115770.0,2.12790529]
[1757740744269,0.11948074,115780.0,115770.0,1.76710529]
[1757740744467,0.04192734,115780.0,115770.0,2.31625869]
[1757740744680,0.01269,115780.0,115770.0,2.33359849]
[1757740744873,0.01269,115780.0,115770.0,2.56625869]
[1757740755083,0.01269,115780.0,115770.0,4.22497869]
[1757740759186,0.0835,115790.0,115770.0,4.31130769]
[1757740759482,0.11218707,115790.0,115780.0,0.5934602]
[1757740759686,0.0835,115790.0,115780.0,1.18086575]
[1757740760383,0.01269,115790.0,115780.0,1.18086575]
[1757740761388,0.01269,115790.0,115780.0,0.94820555]
[1757740761582,0.01269,115790.0,115780.0,1.18086575]
[1757740761888,0.01269,115790.0,115780.0,1.24918886]
[1757740765486,0.01269,115790.0,115780.0,1.33551056]
[1757740765680,0.041323,115790.0,115780.0,1.33551056]
[1757740765885,0.01269,115790.0,115780.0,1.33551056]
[1757740766290,0.04143332,115790.0,115780.0,1.33551056]
[1757740767088,0.01269,115790.0,115780.0,1.33551056]
[1757740767288,0.01269,115790.0,115780.0,1.10285036]
[1757740767488,0.04143229,115790.0,115780.0,1.33551056]
[1757740768097,0.01269,115790.0,115780.0,1.33551056]
[1757740768291,0.04143256,115790.0,115780.0,1.33551056]
[1757740769296,0.01269,115790.0,115780.0,1.33551056]
[1757740772095,0.04143416,115790.0,115780.0,1.33551056]
[1757740776502,0.04143416,115790.0,115780.0,1.96859546]
[1757740776702,0.04143416,115790.0,115780.0,1.81348866]
[1757740776897,0.04143416,115790.0,115780.0,2.04614886]
[1757740783200,0.04143416,115790.0,115780.0,1.01652866]
[1757740783405,0.11898756,115790.0,115780.0,1.17163546]
[1757740783701,0.04143416,115790.0,115780.0,1.82464866]
[1757740783906,0.04143416,115790.0,115780.0,2.05730886]
[1757740786006,0.01269,115790.0,115780.0,1.82464866]
[1757740786308,0.04145266,115790.0,115780.0,2.05730886]
[1757740788513,0.04145266,115790.0,115780.0,2.06186886]
[1757740789011,0.04145266,115790.0,115780.0,1.01652866]
[1757740789316,0.46977946,115790.0,115780.0,1.25876866]
[1757740789616,0.39222606,115790.0,115780.0,1.26799895]
[1757740789919,0.36900606,115790.0,115780.0,1.34555235]
[1757740790214,0.29145266,115790.0,115780.0,1.34555235]
[1757740795921,0.29145266,115790.0,115780.0,1.41585044]
[1757740796321,0.36226266,115790.0,115780.0,1.41585044]
[1757740796821,0.43981606,115790.0,115780.0,1.41585044]
[1757740797324,0.36226266,115790.0,115780.0,1.41585044]
[1757740797520,0.43981606,115790.0,115780.0,1.41585044]
[1757740797818,0.36226266,115790.0,115780.0,1.41585044]
[1757740799022,0.43981606,115790.0,115780.0,1.41585044]
[1757740802433,0.36226266,115790.0,115780.0,1.36413417]
[1757740804131,0.36226266,115790.0,115780.0,1.4675247]
[1757740804930,0.36226266,115790.0,115780.0,1.39722661]
[1757740807331,0.36226266,115790.0,115780.0,1.34722661]
[1757740810735,0.36226266,115790.0,115780.0,1.41510777]
[1757740812239,0.36226266,115790.0,115780.0,1.61510777]
[1757740816740,0.36226266,115790.0,115780.0,1.40832671]
[1757740817040,0.36226266,115790.0,115780.0,1.61510777]
[1757740820342,0.36226266,115790.0,115780.0,1.40832671]
[1757740820639,0.36226266,115790.0,115780.0,1.61510777]
[1757740821741,0.11226266,115790.0,115780.0,1.61510777]
[1757740828944,0.11226266,115790.0,115780.0,1.40832671]
[1757740829143,0.11226266,115790.0,115780.0,1.61510777]
[1757740835149,0.11226266,115790.0,115780.0,1.40832671]
[1757740835346,0.11226266,115790.0,115780.0,1.41510777]
[1757740835550,0.11226266,115790.0,115780.0,1.96510777]
[1757740836647,0.11166072,115790.0,115780.0,1.96510777]
[1757740837052,0.0835,115790.0,115780.0,1.96510777]
[1757740840654,0.11165837,115790.0,115780.0,1.96510777]
[1757740842155,0.0835,115790.0,115780.0,1.96510777]
[1757740842356,0.11165647,115790.0,115780.0,1.96510777]
[1757740847962,0.0835,115790.0,115780.0,1.96510777]
[1757740850161,0.0835,115790.0,115780.0,2.3184983]
[1757740850361,0.07081,115790.0,115780.0,2.4184983]
[1757740854873,0.07081,115790.0,115780.0,2.6845983]
[1757740859665,0.08436,115790.0,115780.0,2.6845983]
[1757740864373,0.08436,115790.0,115780.0,2.76211332]
[1757740870183,0.08436,115790.0,115780.0,2.84843492]
[1757740870485,0.08436,115790.0,115780.0,4.50687492]
[1757740877382,0.01264,115800.0,115780.0,4.10173337]
[1757740877575,0.01264,115800.0,115790.0,0.81784115]
[1757740877781,0.01264,115800.0,115790.0,1.31784115]
[1757740878686,0.01364,115800.0,115790.0,1.31784115]
[1757740879787,0.01464,115800.0,115790.0,1.33525943]
[1757740883494,0.01464,115800.0,115790.0,1.60135943]
[1757740883792,0.01464,115800.0,115790.0,1.70135943]
[1757740884693,0.01739,115810.0,115790.0,2.11767373]
[1757740884892,0.01739,115810.0,115800.0,1.39670506]
[1757740885096,0.01739,115810.0,115800.0,1.99670506]
[1757740885990,0.01839,115810.0,115800.0,1.99670506]
[1757740886396,0.01939,115810.0,115800.0,1.99670506]
[1757740886593,0.01839,115810.0,115800.0,1.99670506]
[1757740886794,0.01939,115810.0,115800.0,1.99670506]
[1757740887394,0.01939,115810.0,115800.0,2.26280506]
[1757740888600,0.01939,115810.0,115800.0,2.36280506]
[1757740889497,0.01939,115810.0,115800.0,2.44911186]
[1757740889702,0.01939,115810.0,115800.0,2.75911186]
[1757740894805,0.00551,115810.0,115800.0,2.75911186]
[1757740897998,0.0131,115820.0,115800.0,2.75911186]
[1757740898209,0.0131,115820.0,115810.0,0.59334506]
[1757740898409,0.0131,115820.0,115810.0,1.21115347]
[1757740899210,0.0131,115820.0,115810.0,1.47725347]
[1757740899610,0.0151,115820.0,115810.0,1.47725347]
[1757740899813,0.0151,115820.0,115810.0,1.56355277]
[1757740900013,0.0151,115820.0,115810.0,1.66355277]
[1757740900202,0.0131,115820.0,115810.0,1.66355277]
[1757740900402,0.0151,115820.0,115810.0,1.66355277]
[1757740902014,0.01355,115830.0,115820.0,0.1]
[1757740902215,0.01355,115830.0,115820.0,2.08410506]
[1757740903317,0.01555,115830.0,115820.0,2.08410506]
[1757740904419,0.01555,115830.0,115820.0,2.15259791]
[1757740905320,0.01555,115830.0,115820.0,2.41869791]
[1757740905620,0.01355,115830.0,115820.0,2.41869791]
[1757740908920,0.01355,115830.0,115820.0,1.61793791]
[1757740909122,0.01355,115830.0,115820.0,2.41861791]
[1757740909425,0.01355,115830.0,115820.0,2.41829791]
[1757740911426,0.01355,115830.0,115820.0,1.51793791]
[1757740911728,0.01355,115830.0,115820.0,2.31785791]
[1757740912931,0.01355,115830.0,115820.0,1.51793791]
[1757740913126,0.01355,115830.0,115820.0,2.31813791]
[1757740914426,0.04150478,115830.0,115820.0,2.31813791]
[1757740915733,0.04150478,115830.0,115820.0,3.97601791]
[1757740917035,0.04150478,115830.0,115820.0,3.70991791]
[1757740920444,0.04150478,115830.0,115820.0,3.70875791]
[1757740920944,0.01355,115830.0,115820.0,3.70875791]
[1757740923548,0.04153281,115830.0,115820.0,3.70875791]
[1757740926345,0.04153281,115830.0,115820.0,3.68280271]
[1757740927642,0.04153281,115830.0,115820.0,3.32200271]
[1757740927945,0.04153281,115830.0,115820.0,4.04360271]
[1757740928947,0.01355,115830.0,115820.0,4.04360271]
[1757740931048,0.01355,115830.0,115820.0,3.83701285]
[1757740931348,0.01355,115830.0,115820.0,4.04360271]
[1757740932841,0.01355,115830.0,115820.0,3.83701285]
[1757740933042,0.01355,115830.0,115820.0,4.04360271]
[1757740940461,0.01355,115830.0,115820.0,3.83701285]
[1757740940658,0.01355,115830.0,115820.0,4.04360271]
[1757740945049,0.01355,115830.0,115820.0,3.83701285]
[1757740945252,0.01355,115830.0,115820.0,4.04360271]
[1757740945461,0.04163132,115830.0,115820.0,4.04360271]